[Event "FIDE WSTC Open 65 2025"]
[Site "Prague"]
[Date "2025.02.20"]
[Round "4.21"]
[White "Ogaard, Leif"]
[Black "Wirthensohn, Heinz"]
[Result "0-1"]
[Annotator "RC"]
[ECO "B38"]
[WhiteElo "2358"]
[BlackElo "2273"]
[PlyCount "50"]
[EventDate "2025.02.17"]
[EventType "team-tourn"]
[EventCountry "CZE"]
[SourceTitle "playchess.com"]
[Source "ChessBase"]
[SourceQuality "1"]
[TimeControl "40/5400+30:1800+30"]

1. Nf3 {[%emt 0:00:09]} c5 {[%emt 0:00:49]} 2. c4 {[%emt 0:02:54]} g6 {[%emt 0:00:32]} 3. d4 {[%emt 0:01:28]} cxd4 {[%emt 0:00:10]} 4. Nxd4 {[%emt 0:00:09]} Nc6 {[%emt 0:01:09]} 5. e4 {[%emt 0:01:09]} Bg7 {[%emt 0:00:07]} 6. Be3 {[%emt 0:00:34]} Nf6 {[%emt 0:00:06]} 7. Nc3 {[%emt 0:01:41]} O-O {[%emt 0:00:49]} 8. Be2 {[%emt 0:00:50]} b6 {[%emt 0:00:04]} 9. Nc2 {[%emt 0:04:09]} Bb7 {[%emt 0:00:21]} 10. Qd2 {[%emt 0:03:17]} Rc8 {[%emt 0:04:21]} 11. f3 {[%emt 0:00:31]} Ne5 {[%emt 0:01:55]} 12. b3 {[%emt 0:01:51]} d6 {[%emt 0:03:49]} 13. O-O {[%emt 0:01:31]} a6 {[%emt 0:00:35]} 14. Rac1 {[%emt 0:00:50]} Re8 {[%emt 0:05:30]} 15. Rfd1 {[%emt 0:00:43]} Ned7 {[%emt 0:02:02]} 16. Bf1 {[%emt 0:03:28]} Qc7 {[%emt 0:03:57]} 17. Nb4 {[%emt 0:01:52]} Qb8 {[%emt 0:02:19]} 18. Nbd5 {[%emt 0:03:10]} Bc6 {[%emt 0:03:49]} 19. Qf2 {[%emt 0:04:21]} b5 {[%emt 0:08:09]} 20. cxb5 {[%emt 0:21:44]} Bxb5 {[%emt 0:00:25]} 21. Nxb5 {[%emt 0:07:52]} Rxc1 {[%emt 0:01:37]} 22. Rxc1 {[%emt 0:04:35]} Nxd5 {[%emt 0:00:38]} 23. Nxd6 {[%emt 0:04:07]} Nxe3 {[%emt 0:02:42]} 24. Nxe8 {[%emt 0:06:28]} Bd4 {[%emt 0:01:02]} 25. Qd2 {[%emt 0:10:57]} Ng4+ {[%emt 0:01:13]} 0-1

[Event "FIDE WSTC Open 65 2025"]
[Site "Prague"]
[Date "2025.02.20"]
[Round "4.22"]
[White "Sadeghi, Hassan Roger"]
[Black "Heim, Sverre"]
[Result "1/2-1/2"]
[Annotator "ChessBase"]
[ECO "A47"]
[WhiteElo "2029"]
[BlackElo "2312"]
[PlyCount "57"]
[EventDate "2025.02.17"]
[EventType "team-tourn"]
[EventCountry "CZE"]
[SourceTitle "playchess.com"]
[Source "ChessBase"]
[SourceQuality "1"]
[TimeControl "40/5400+30:1800+30"]

1. d4 {[%emt 0:00:06]} e6 {[%emt 0:00:19]} 2. Nf3 {[%emt 0:00:29]} Nf6 {[%emt 0:00:20]} 3. Bg5 {[%emt 0:00:37]} c5 {[%emt 0:01:16]} 4. e3 {[%emt 0:00:14]} cxd4 {[%emt 0:02:42]} 5. exd4 {[%emt 0:00:06]} b6 {[%emt 0:02:00]} 6. Nbd2 {[%emt 0:01:34]} Be7 {[%emt 0:00:37]} 7. Bd3 {[%emt 0:01:34]} Bb7 {[%emt 0:00:19]} 8. O-O {[%emt 0:00:27]} O-O {[%emt 0:00:41]} 9. Re1 {[%emt 0:01:05]} d6 {[%emt 0:00:37]} 10. c3 {[%emt 0:04:30]} Nbd7 {[%emt 0:00:30]} 11. Nc4 {[%emt 0:03:11]} b5 {[%emt 0:09:09]} 12. Ne3 {[%emt 0:00:32]} a6 {[%emt 0:00:25]} 13. a4 {[%emt 0:01:32]} Rb8 {[%emt 0:06:31]} 14. Qe2 {[%emt 0:01:13]} Be4 {[%emt 0:05:53]} 15. Bxe4 {[%emt 0:05:10]} Nxe4 {[%emt 0:01:38]} 16. Bxe7 {[%emt 0:00:14]} Qxe7 {[%emt 0:00:13]} 17. axb5 {[%emt 0:00:16]} axb5 {[%emt 0:00:19]} 18. d5 {[%emt 0:02:30]} Ndf6 {[%emt 0:02:54]} 19. Nd4 {[%emt 0:09:45]} Qd7 {[%emt 0:01:16]} 20. Nc6 {[%emt 0:11:49]} Rb6 {[%emt 0:03:23]} 21. f3 {[%emt 0:06:01]} Nc5 {[%emt 0:01:09]} 22. b4 {[%emt 0:00:19]} Na4 {[%emt 0:08:18]} 23. c4 {[%emt 0:00:46]} exd5 {[%emt 0:00:20]} 24. Nxd5 {[%emt 0:24:59]} Rxc6 {[%emt 0:12:27]} 25. Qe7 {[%emt 0:04:22]} Qf5 {[%emt 0:06:27]} 26. Qxf6 {[%emt 0:03:57]} Qxf6 {[%emt 0:00:59]} 27. Nxf6+ {[%emt 0:00:05]} gxf6 {[%emt 0:00:07]} 28. cxb5 {[%emt 0:00:06]} Rb6 {[%emt 0:00:43]} 29. Rxa4 {[%emt 0:00:08]} 1/2-1/2

[Event "FIDE WSTC Open 65 2025"]
[Site "Prague"]
[Date "2025.02.20"]
[Round "4.23"]
[White "Moen, Ole Christian"]
[Black "Zuelle, Bruno"]
[Result "1-0"]
[Annotator "ChessBase"]
[ECO "B18"]
[WhiteElo "2201"]
[BlackElo "2038"]
[PlyCount "95"]
[EventDate "2025.02.17"]
[EventType "team-tourn"]
[EventCountry "CZE"]
[SourceTitle "playchess.com"]
[Source "ChessBase"]
[SourceQuality "1"]
[TimeControl "40/5400+30:1800+30"]

1. e4 {[%emt 0:00:05]} c6 {[%emt 0:00:10]} 2. d4 {[%emt 0:00:30]} d5 {[%emt 0:00:10]} 3. Nd2 {[%emt 0:00:07]} dxe4 {[%emt 0:00:18]} 4. Nxe4 {[%emt 0:00:09]} Bf5 {[%emt 0:00:11]} 5. Ng3 {[%emt 0:01:34]} Bg6 {[%emt 0:00:11]} 6. Nf3 {[%emt 0:00:22]} Nd7 {[%emt 0:00:30]} 7. c3 {[%emt 0:06:40]} e6 {[%emt 0:03:30]} 8. Bf4 {[%emt 0:01:53]} Ngf6 {[%emt 0:01:26]} 9. Nh4 {[%emt 0:01:06]} Nd5 {[%emt 0:03:02]} 10. Nxg6 {[%emt 0:01:34]} hxg6 {[%emt 0:00:17]} 11. Bd2 {[%emt 0:00:13]} Qc7 {[%emt 0:03:33]} 12. c4 {[%emt 0:08:02]} Nf4 {[%emt 0:05:13]} 13. Qf3 {[%emt 0:01:15]} Nh5 {[%emt 0:03:08]} 14. Ne4 {[%emt 0:06:11]} Nhf6 {[%emt 0:04:19]} 15. O-O-O {[%emt 0:03:38]} Nxe4 {[%emt 0:02:10]} 16. Qxe4 {[%emt 0:00:18]} Be7 {[%emt 0:03:36]} 17. g3 {[%emt 0:03:23]} O-O-O {[%emt 0:06:47]} 18. Be3 {[%emt 0:04:22]} Qa5 {[%emt 0:05:46]} 19. Kb1 {[%emt 0:03:58]} Nf6 {[%emt 0:06:29]} 20. Qc2 {[%emt 0:04:07]} Ng4 {[%emt 0:03:20]} 21. Bc1 {[%emt 0:02:59]} Rxh2 {[%emt 0:05:02]} 22. Rxh2 {[%emt 0:01:22]} Nxh2 {[%emt 0:00:11]} 23. Bg2 {[%emt 0:02:00]} Ng4 {[%emt 0:06:42]} 24. d5 {[%emt 0:01:32]} Qc5 {[%emt 0:04:34]} 25. dxc6 {[%emt 0:02:58]} bxc6 {[%emt 0:00:48]} 26. Rxd8+ {[%emt 0:02:17]} Bxd8 {[%emt 0:00:18]} 27. Qa4 {[%emt 0:01:36]} Kb7 {[%emt 0:02:57]} 28. Qd1 {[%emt 0:09:02]} Qf5+ {[%emt 0:01:40]} 29. Ka1 {[%emt 0:00:06]} Bc7 {[%emt 0:01:52]} 30. Bh3 {[%emt 0:01:55]} Qxf2 {[%emt 0:01:39]} 31. Bxg4 {[%emt 0:00:44]} Qxg3 {[%emt 0:00:54]} 32. Bf3 {[%emt 0:00:26]} Qd6 {[%emt 0:02:49]} 33. Qa4 {[%emt 0:01:47]} Bb6 {[%emt 0:02:38]} 34. a3 {[%emt 0:04:57]} e5 {[%emt 0:02:43]} 35. Qb3 {[%emt 0:02:36]} Qc5 {[%emt 0:02:17]} 36. Ka2 {[%emt 0:10:15]} f5 {[%emt 0:01:06]} 37. Be2 {[%emt 0:02:57]} Qf2 {[%emt 0:04:07]} 38. Qd1 {[%emt 0:03:30]} Bd4 {[%emt 0:02:38]} 39. c5 {[%emt 0:00:59]} Kc7 {[%emt 0:04:45]} 40. Ba6 {[%emt 0:03:11]} Qg3 {[%emt 0:02:36]} 41. Qh1 {[%emt 0:05:48]} Bxc5 {[%emt 0:05:42]} 42. Qh8 {[%emt 0:00:11]} Be7 {[%emt 0:07:33]} 43. Qc8+ {[%emt 0:03:09]} Kd6 {[%emt 0:00:55]} 44. Bd2 {[%emt 0:00:44]} Kd5 {[%emt 0:03:25]} 45. Qd7+ {[%emt 0:05:48]} Bd6 {[%emt 0:00:31]} 46. Qf7+ {[%emt 0:00:53]} Ke4 {[%emt 0:01:43]} 47. Qc4+ {[%emt 0:00:10]} Kf3 {[%emt 0:00:33]} 48. Qe2# {[%emt 0:00:06]} 1-0

[Event "FIDE WSTC Open 65 2025"]
[Site "Prague"]
[Date "2025.02.20"]
[Round "4.24"]
[White "Erismann, Peter"]
[Black "Bjerke, Richard"]
[Result "1/2-1/2"]
[Annotator "ChessBase"]
[ECO "C07"]
[WhiteElo "2013"]
[BlackElo "2037"]
[PlyCount "98"]
[EventDate "2025.02.17"]
[EventType "team-tourn"]
[EventCountry "CZE"]
[SourceTitle "playchess.com"]
[Source "ChessBase"]
[SourceQuality "1"]
[TimeControl "40/5400+30:1800+30"]

1. e4 {[%emt 0:00:05]} e6 {[%emt 0:00:17]} 2. d4 {[%emt 0:00:06]} d5 {[%emt 0:00:09]} 3. Nd2 {[%emt 0:00:10]} c5 {[%emt 0:00:37]} 4. exd5 {[%emt 0:00:23]} Qxd5 {[%emt 0:00:25]} 5. Ngf3 {[%emt 0:00:12]} cxd4 {[%emt 0:00:50]} 6. Bc4 {[%emt 0:00:12]} Qd6 {[%emt 0:00:30]} 7. O-O {[%emt 0:00:26]} Nc6 {[%emt 0:01:35]} 8. Nb3 {[%emt 0:00:12]} Nf6 {[%emt 0:00:49]} 9. Nbxd4 {[%emt 0:00:19]} Nxd4 {[%emt 0:00:38]} 10. Nxd4 {[%emt 0:00:27]} Be7 {[%emt 0:01:25]} 11. c3 {[%emt 0:04:01]} O-O {[%emt 0:02:00]} 12. Qf3 {[%emt 0:01:39]} a6 {[%emt 0:04:21]} 13. Bb3 {[%emt 0:03:46]} Qc7 {[%emt 0:04:18]} 14. Re1 {[%emt 0:03:35]} Bd6 {[%emt 0:05:54]} 15. h3 {[%emt 0:10:29]} e5 {[%emt 0:06:12]} 16. Nc2 {[%emt 0:10:23]} e4 {[%emt 0:01:21]} 17. Qe2 {[%emt 0:00:16]} h6 {[%emt 0:02:49]} 18. Ne3 {[%emt 0:01:12]} Qc5 {[%emt 0:13:51]} 19. Ng4 {[%emt 0:11:22]} Bxg4 {[%emt 0:02:34]} 20. hxg4 {[%emt 0:00:09]} Rae8 {[%emt 0:01:11]} 21. Be3 {[%emt 0:00:45]} Qc8 {[%emt 0:04:47]} 22. g5 {[%emt 0:03:13]} hxg5 {[%emt 0:02:39]} 23. Bxg5 {[%emt 0:00:16]} Ng4 {[%emt 0:01:19]} 24. Rad1 {[%emt 0:12:13]} Bc5 {[%emt 0:09:10]} 25. Be3 {[%emt 0:02:02]} Bxe3 {[%emt 0:05:55]} 26. fxe3 {[%emt 0:00:22]} Qf5 {[%emt 0:09:35]} 27. Rd5 {[%emt 0:00:54]} Re5 {[%emt 0:01:41]} 28. Rxe5 {[%emt 0:03:14]} Nxe5 {[%emt 0:00:11]} 29. Rf1 {[%emt 0:00:31]} Qg6 {[%emt 0:04:19]} 30. Rf4 {[%emt 0:02:33]} Rd8 {[%emt 0:01:59]} 31. Kf1 {[%emt 0:04:59]} Qh7 {[%emt 0:03:35]} 32. Qf2 {[%emt 0:13:15]} g5 {[%emt 0:02:11]} 33. Rf5 {[%emt 0:01:21]} Nf3 {[%emt 0:02:03]} 34. Rd5 {[%emt 0:01:28]} Qh1+ {[%emt 0:04:11]} 35. Ke2 {[%emt 0:00:20]} Rxd5 {[%emt 0:00:25]} 36. Bxd5 {[%emt 0:00:11]} Ne5 {[%emt 0:01:34]} 37. Qg3 {[%emt 0:01:55]} Qh5+ {[%emt 0:00:30]} 38. Kd2 {[%emt 0:00:52]} g4 {[%emt 0:00:17]} 39. Bxe4 {[%emt 0:01:00]} Nc4+ {[%emt 0:00:36]} 40. Kc2 {[%emt 0:00:39]} Qc5 {[%emt 0:00:43]} 41. Qxg4+ {[%emt 0:37:03]} Kf8 {[%emt 0:02:00]} 42. Qf4 {[%emt 0:00:00]} b5 {[%emt 0:05:32]} 43. b4 {[%emt 0:00:00]} Qh5 {[%emt 0:04:24]} 44. Bd3 {[%emt 0:00:00]} Na3+ {[%emt 0:04:55]} 45. Kd2 {[%emt 0:00:00]} Qd5 {[%emt 0:00:27]} 46. Qh6+ {[%emt 0:00:00]} Ke7 {[%emt 0:03:04]} 47. Qh4+ {[%emt 0:00:00]} Kf8 {[%emt 0:00:28]} 48. Qh8+ {[%emt 0:00:00]} Ke7 {[%emt 0:00:14]} 49. Qh4+ {[%emt 0:00:00]} Kf8 {[%emt 0:00:16]} 1/2-1/2

[Event "FIDE WSTC Open 65 2025"]
[Site "Prague"]
[Date "2025.02.20"]
[Round "4.25"]
[White "Uddenfeldt, Dan"]
[Black "Boudre, Jean-Pierre"]
[Result "1-0"]
[Annotator "ChessBase"]
[ECO "E11"]
[WhiteElo "2311"]
[BlackElo "2206"]
[PlyCount "97"]
[EventDate "2025.02.17"]
[EventType "team-tourn"]
[EventCountry "CZE"]
[SourceTitle "playchess.com"]
[Source "ChessBase"]
[SourceQuality "1"]
[TimeControl "40/5400+30:1800+30"]

1. Nf3 {[%emt 0:00:30]} Nf6 {[%emt 0:05:37]} 2. d4 {[%emt 0:00:38]} e6 {[%emt 0:00:10]} 3. c4 {[%emt 0:00:47]} Bb4+ {[%emt 0:00:16]} 4. Bd2 {[%emt 0:00:31]} c5 {[%emt 0:00:26]} 5. dxc5 {[%emt 0:03:07]} Bxc5 {[%emt 0:01:18]} 6. Qc2 {[%emt 0:01:16]} Nc6 {[%emt 0:05:37]} 7. e3 {[%emt 0:01:11]} b6 {[%emt 0:06:33]} 8. a3 {[%emt 0:01:32]} Bb7 {[%emt 0:01:24]} 9. Nc3 {[%emt 0:01:16]} O-O {[%emt 0:01:23]} 10. Bd3 {[%emt 0:01:27]} Rc8 {[%emt 0:01:48]} 11. O-O {[%emt 0:03:22]} Be7 {[%emt 0:07:05]} 12. e4 {[%emt 0:03:46]} d6 {[%emt 0:00:30]} 13. Bf4 {[%emt 0:04:10]} Nh5 {[%emt 0:10:00]} 14. Be3 {[%emt 0:01:08]} Nf6 {[%emt 0:00:41]} 15. Rfd1 {[%emt 0:03:47]} Qc7 {[%emt 0:01:21]} 16. Bg5 {[%emt 0:11:44]} Ne5 {[%emt 0:06:20]} 17. Nd2 {[%emt 0:09:07]} Rfd8 {[%emt 0:06:03]} 18. h3 {[%emt 0:18:36]} h6 {[%emt 0:07:56]} 19. Bf4 {[%emt 0:05:00]} Qb8 {[%emt 0:04:32]} 20. Bh2 {[%emt 0:05:33]} Qa8 {[%emt 0:00:36]} 21. Be2 {[%emt 0:01:58]} Nfd7 {[%emt 0:02:10]} 22. f4 {[%emt 0:06:22]} Nc6 {[%emt 0:00:14]} 23. Nf3 {[%emt 0:02:41]} Nf6 {[%emt 0:00:18]} 24. b4 {[%emt 0:02:09]} d5 {[%emt 0:08:41]} 25. exd5 {[%emt 0:00:48]} exd5 {[%emt 0:00:07]} 26. Qb3 {[%emt 0:00:34]} d4 {[%emt 0:03:33]} 27. Nb5 {[%emt 0:00:31]} a6 {[%emt 0:00:12]} 28. Nbxd4 {[%emt 0:00:21]} Nxd4 {[%emt 0:00:04]} 29. Rxd4 {[%emt 0:00:15]} Rxd4 {[%emt 0:00:05]} 30. Nxd4 {[%emt 0:00:30]} Bxg2 {[%emt 0:00:04]} 31. Nf5 {[%emt 0:00:33]} Bf8 {[%emt 0:00:58]} 32. Nxh6+ {[%emt 0:01:28]} gxh6 {[%emt 0:00:30]} 33. Qg3+ {[%emt 0:00:08]} Bg7 {[%emt 0:00:03]} 34. Qxg2 {[%emt 0:00:24]} Qa7 {[%emt 0:02:15]} 35. Kh1 {[%emt 0:01:32]} Kh8 {[%emt 0:00:04]} 36. Rg1 {[%emt 0:00:53]} Rg8 {[%emt 0:01:17]} 37. Bd3 {[%emt 0:01:07]} Qd7 {[%emt 0:01:19]} 38. Qf3 {[%emt 0:01:06]} Qd4 {[%emt 0:01:00]} 39. Rd1 {[%emt 0:01:45]} Qb2 {[%emt 0:01:04]} 40. Bf1 {[%emt 0:00:12]} Re8 {[%emt 0:01:03]} 41. Bg1 {[%emt 0:30:34]} Ne4 {[%emt 0:33:44]} 42. Bxb6 {[%emt 0:01:48]} Qf6 {[%emt 0:06:34]} 43. Bg1 {[%emt 0:03:33]} Qh4 {[%emt 0:05:55]} 44. Kh2 {[%emt 0:00:32]} f5 {[%emt 0:00:00]} 45. c5 {[%emt 0:00:00]} Qf6 {[%emt 0:00:00]} 46. Rd7 {[%emt 0:00:00]} Rg8 {[%emt 0:00:00]} 47. Rd5 {[%emt 0:00:00]} Qa1 {[%emt 0:00:00]} 48. Bg2 {[%emt 0:00:00]} Qb1 {[%emt 0:01:55]} 49. Qd3 {[%emt 0:00:00]} 1-0

[Event "FIDE WSTC Open 65 2025"]
[Site "Prague"]
[Date "2025.02.20"]
[Round "4.26"]
[White "Brongers, Henk"]
[Black "Renman, Nils-Gustaf"]
[Result "0-1"]
[Annotator "ChessBase"]
[ECO "C15"]
[WhiteElo "2022"]
[BlackElo "2306"]
[PlyCount "128"]
[EventDate "2025.02.17"]
[EventType "team-tourn"]
[EventCountry "CZE"]
[SourceTitle "playchess.com"]
[Source "ChessBase"]
[SourceQuality "1"]
[TimeControl "40/5400+30:1800+30"]

1. e4 {[%emt 0:00:05]} e6 {[%emt 0:00:05]} 2. d4 {[%emt 0:00:20]} d5 {[%emt 0:00:06]} 3. Nc3 {[%emt 0:00:25]} Bb4 {[%emt 0:00:10]} 4. Nge2 {[%emt 0:01:57]} dxe4 {[%emt 0:00:18]} 5. a3 {[%emt 0:00:36]} Bxc3+ {[%emt 0:00:13]} 6. Nxc3 {[%emt 0:00:15]} Nc6 {[%emt 0:00:07]} 7. d5 {[%emt 0:00:25]} exd5 {[%emt 0:00:40]} 8. Qxd5 {[%emt 0:00:20]} Be6 {[%emt 0:00:41]} 9. Qxe4 {[%emt 0:01:07]} Nf6 {[%emt 0:00:35]} 10. Qa4 {[%emt 0:03:24]} Qe7 {[%emt 0:19:00]} 11. Be2 {[%emt 0:06:43]} Nd5 {[%emt 0:01:19]} 12. Bd2 {[%emt 0:16:19]} O-O-O {[%emt 0:03:08]} 13. Nxd5 {[%emt 0:11:40]} Bxd5 {[%emt 0:00:52]} 14. Be3 {[%emt 0:00:38]} Qe4 {[%emt 0:02:57]} 15. Qxe4 {[%emt 0:10:00]} Bxe4 {[%emt 0:00:02]} 16. c3 {[%emt 0:00:30]} Bxg2 {[%emt 0:00:51]} 17. Rg1 {[%emt 0:00:22]} Be4 {[%emt 0:00:14]} 18. Rxg7 {[%emt 0:17:25]} Bg6 {[%emt 0:00:25]} 19. h4 {[%emt 0:02:49]} h5 {[%emt 0:00:52]} 20. Bc4 {[%emt 0:02:09]} Ne5 {[%emt 0:02:05]} 21. Bb3 {[%emt 0:01:06]} Nf3+ {[%emt 0:05:22]} 22. Kf1 {[%emt 0:01:22]} Rd7 {[%emt 0:11:45]} 23. Rxg6 {[%emt 0:00:17]} fxg6 {[%emt 0:04:09]} 24. Be6 {[%emt 0:00:32]} Kd8 {[%emt 0:00:21]} 25. Bxd7 {[%emt 0:02:59]} Kxd7 {[%emt 0:00:03]} 26. Rd1+ {[%emt 0:04:46]} Ke6 {[%emt 0:02:41]} 27. Bf4 {[%emt 0:00:31]} Rh7 {[%emt 0:06:17]} 28. Bg3 {[%emt 0:01:41]} Kf5 {[%emt 0:13:10]} 29. Rd8 {[%emt 0:07:07]} Rf7 {[%emt 0:03:12]} 30. Rg8 {[%emt 0:05:09]} Nd2+ {[%emt 0:02:53]} 31. Kg2 {[%emt 0:00:19]} Nc4 {[%emt 0:00:09]} 32. Rc8 {[%emt 0:00:27]} Nxb2 {[%emt 0:00:33]} 33. Bxc7 {[%emt 0:00:15]} Ke6 {[%emt 0:18:09]} 34. Bg3 {[%emt 0:00:32]} Kd5 {[%emt 0:00:32]} 35. Rg8 {[%emt 0:00:30]} Rf6 {[%emt 0:00:23]} 36. Rg7 {[%emt 0:00:03]} Kc6 {[%emt 0:01:05]} 37. Be5 {[%emt 0:00:41]} Re6 {[%emt 0:00:19]} 38. Bd4 {[%emt 0:00:13]} a5 {[%emt 0:01:27]} 39. Kf3 {[%emt 0:00:14]} Nc4 {[%emt 0:01:02]} 40. a4 {[%emt 0:01:47]} Nb2 {[%emt 0:00:09]} 41. Rg8 {[%emt 0:30:08]} Nxa4 {[%emt 0:30:53]} 42. c4 {[%emt 0:02:20]} Nb6 {[%emt 0:00:00]} 43. c5 {[%emt 0:00:00]} Nd7 {[%emt 0:00:00]} 44. Rc8+ {[%emt 0:00:00]} Kd5 {[%emt 0:00:00]} 45. Be3 {[%emt 0:00:00]} Ne5+ {[%emt 0:00:00]} 46. Kf4 {[%emt 0:00:00]} Nc4 {[%emt 0:00:00]} 47. Rd8+ {[%emt 0:00:00]} Kc6 {[%emt 0:00:00]} 48. Bd4 {[%emt 0:00:00]} Nd2 {[%emt 0:00:00]} 49. f3 {[%emt 0:00:00]} Nb3 {[%emt 0:00:00]} 50. Be3 {[%emt 0:00:00]} a4 {[%emt 0:00:00]} 51. Ra8 {[%emt 0:00:00]} Kb5 {[%emt 0:00:00]} 52. Rb8 {[%emt 0:00:00]} Nxc5 {[%emt 0:00:00]} 53. Bxc5 {[%emt 0:00:00]} Kxc5 {[%emt 0:00:00]} 54. Rxb7 {[%emt 0:00:00]} Ra6 {[%emt 0:00:00]} 55. Kg5 {[%emt 0:00:00]} a3 {[%emt 0:00:00]} 56. Rb1 {[%emt 0:00:00]} Kc4 {[%emt 0:00:00]} 57. f4 {[%emt 0:00:00]} a2 {[%emt 0:00:00]} 58. Ra1 {[%emt 0:00:00]} Kb3 {[%emt 0:00:00]} 59. Rf1 {[%emt 0:00:21]} Rc6 {[%emt 0:00:53]} 60. f5 {[%emt 0:06:05]} gxf5 {[%emt 0:00:14]} 61. Ra1 {[%emt 0:01:05]} Kb2 {[%emt 0:00:28]} 62. Rxa2+ {[%emt 0:00:02]} Kxa2 {[%emt 0:00:10]} 63. Kxh5 {[%emt 0:00:29]} f4 {[%emt 0:01:35]} 64. Kg4 {[%emt 0:00:11]} Rh6 {[%emt 0:00:15]} 0-1

[Event "FIDE WSTC Open 65 2025"]
[Site "Prague"]
[Date "2025.02.20"]
[Round "4.27"]
[White "Wahlbom, Magnus"]
[Black "Donnenfeld, Patrice"]
[Result "1-0"]
[Annotator "ChessBase"]
[ECO "B27"]
[WhiteElo "2109"]
[BlackElo "2052"]
[PlyCount "84"]
[EventDate "2025.02.17"]
[EventType "team-tourn"]
[EventCountry "CZE"]
[SourceTitle "playchess.com"]
[Source "ChessBase"]
[SourceQuality "1"]
[TimeControl "40/5400+30:1800+30"]

1. e4 {[%emt 0:00:07]} g6 {[%emt 0:00:06]} 2. d4 {[%emt 0:00:15]} Bg7 {[%emt 0:00:07]} 3. Nf3 {[%emt 0:00:41]} c6 {[%emt 0:00:40]} 4. c4 {[%emt 0:02:43]} d5 {[%emt 0:00:29]} 5. exd5 {[%emt 0:03:24]} cxd5 {[%emt 0:00:11]} 6. cxd5 {[%emt 0:00:26]} Nf6 {[%emt 0:00:35]} 7. Bb5+ {[%emt 0:02:09]} Bd7 {[%emt 0:00:27]} 8. Bc4 {[%emt 0:00:17]} O-O {[%emt 0:06:48]} 9. Qb3 {[%emt 0:04:15]} Qb6 {[%emt 0:01:39]} 10. Qxb6 {[%emt 0:01:31]} axb6 {[%emt 0:00:06]} 11. O-O {[%emt 0:05:11]} Na6 {[%emt 0:08:22]} 12. Nc3 {[%emt 0:04:36]} Rac8 {[%emt 0:05:09]} 13. Ne5 {[%emt 0:03:11]} Rfd8 {[%emt 0:05:26]} 14. Bb3 {[%emt 0:08:37]} Be8 {[%emt 0:04:44]} 15. Nc4 {[%emt 0:06:13]} Nd7 {[%emt 0:12:08]} 16. d6 {[%emt 0:09:49]} e6 {[%emt 0:06:18]} 17. Nb5 {[%emt 0:07:58]} Nb4 {[%emt 0:03:27]} 18. Bg5 {[%emt 0:04:37]} f6 {[%emt 0:00:45]} 19. Bd2 {[%emt 0:00:35]} Nd5 {[%emt 0:00:12]} 20. Ne3 {[%emt 0:00:37]} Nxe3 {[%emt 0:11:05]} 21. Bxe6+ {[%emt 0:00:29]} Bf7 {[%emt 0:00:59]} 22. Bxf7+ {[%emt 0:00:15]} Kxf7 {[%emt 0:00:05]} 23. Bxe3 {[%emt 0:00:47]} Rc2 {[%emt 0:01:50]} 24. b3 {[%emt 0:02:36]} Rdc8 {[%emt 0:06:30]} 25. a4 {[%emt 0:01:16]} Rb2 {[%emt 0:06:02]} 26. Rab1 {[%emt 0:00:41]} Rxb1 {[%emt 0:00:35]} 27. Rxb1 {[%emt 0:00:08]} Bf8 {[%emt 0:03:35]} 28. h4 {[%emt 0:01:47]} h6 {[%emt 0:02:26]} 29. Re1 {[%emt 0:05:07]} g5 {[%emt 0:01:54]} 30. hxg5 {[%emt 0:04:57]} hxg5 {[%emt 0:00:07]} 31. f4 {[%emt 0:02:09]} Kg6 {[%emt 0:05:46]} 32. fxg5 {[%emt 0:04:01]} fxg5 {[%emt 0:00:07]} 33. Bf2 {[%emt 0:00:28]} Kf5 {[%emt 0:00:44]} 34. Bg3 {[%emt 0:03:59]} Kg4 {[%emt 0:03:28]} 35. Kh2 {[%emt 0:00:26]} Kf5 {[%emt 0:02:08]} 36. Nc7 {[%emt 0:00:39]} Bg7 {[%emt 0:00:34]} 37. Rd1 {[%emt 0:06:25]} Kg4 {[%emt 0:01:05]} 38. Rd3 {[%emt 0:01:06]} Rh8+ {[%emt 0:01:50]} 39. Kg1 {[%emt 0:00:04]} Bxd4+ {[%emt 0:00:34]} 40. Rxd4+ {[%emt 0:00:14]} Kxg3 {[%emt 0:00:07]} 41. Nd5 {[%emt 0:32:26]} Rc8 {[%emt 0:13:07]} 42. Ne3 {[%emt 0:00:00]} Rc1+ {[%emt 0:02:24]} 1-0

[Event "FIDE WSTC Open 65 2025"]
[Site "Prague"]
[Date "2025.02.20"]
[Round "4.28"]
[White "Canonne, Antoine"]
[Black "Hammar, Bengt"]
[Result "0-1"]
[Annotator "ChessBase"]
[ECO "B23"]
[WhiteElo "1885"]
[BlackElo "2100"]
[PlyCount "80"]
[EventDate "2025.02.17"]
[EventType "team-tourn"]
[EventCountry "CZE"]
[SourceTitle "playchess.com"]
[Source "ChessBase"]
[SourceQuality "1"]
[TimeControl "40/5400+30:1800+30"]

1. e4 {[%emt 0:00:06]} c5 {[%emt 0:00:36]} 2. Nc3 {[%emt 0:00:28]} e6 {[%emt 0:01:08]} 3. f4 {[%emt 0:00:25]} Nc6 {[%emt 0:01:12]} 4. Nf3 {[%emt 0:00:38]} d6 {[%emt 0:05:23]} 5. Bb5 {[%emt 0:01:30]} Nge7 {[%emt 0:01:22]} 6. O-O {[%emt 0:00:45]} g6 {[%emt 0:02:22]} 7. d3 {[%emt 0:01:59]} Bg7 {[%emt 0:01:06]} 8. Qe1 {[%emt 0:01:13]} O-O {[%emt 0:04:04]} 9. Bxc6 {[%emt 0:00:30]} Nxc6 {[%emt 0:00:51]} 10. Bd2 {[%emt 0:01:30]} h6 {[%emt 0:04:10]} 11. Kh1 {[%emt 0:03:11]} Rb8 {[%emt 0:08:02]} 12. Nd1 {[%emt 0:08:24]} f5 {[%emt 0:06:09]} 13. e5 {[%emt 0:04:01]} dxe5 {[%emt 0:03:36]} 14. Nxe5 {[%emt 0:00:54]} Nxe5 {[%emt 0:02:18]} 15. fxe5 {[%emt 0:00:10]} b6 {[%emt 0:01:08]} 16. Bc3 {[%emt 0:04:52]} Bb7 {[%emt 0:01:25]} 17. Qg3 {[%emt 0:07:46]} g5 {[%emt 0:06:38]} 18. Nf2 {[%emt 0:03:31]} Qd5 {[%emt 0:09:48]} 19. Rae1 {[%emt 0:04:13]} Rf7 {[%emt 0:01:20]} 20. Rg1 {[%emt 0:05:08]} Rbf8 {[%emt 0:01:31]} 21. h4 {[%emt 0:04:23]} f4 {[%emt 0:07:27]} 22. Qg4 {[%emt 0:00:24]} f3 {[%emt 0:01:20]} 23. g3 {[%emt 0:05:01]} Rf5 {[%emt 0:01:30]} 24. Kh2 {[%emt 0:20:48]} Bxe5 {[%emt 0:06:42]} 25. Bxe5 {[%emt 0:00:28]} Rxe5 {[%emt 0:00:04]} 26. c4 {[%emt 0:00:11]} Qd6 {[%emt 0:00:18]} 27. h5 {[%emt 0:06:04]} Rff5 {[%emt 0:02:27]} 28. Rgf1 {[%emt 0:10:16]} Kg7 {[%emt 0:03:37]} 29. Kg1 {[%emt 0:00:47]} Re2 {[%emt 0:07:43]} 30. Rxe2 {[%emt 0:02:18]} fxe2 {[%emt 0:00:09]} 31. Re1 {[%emt 0:00:15]} Bf3 {[%emt 0:00:08]} 32. Qh3 {[%emt 0:01:26]} Qd4 {[%emt 0:01:01]} 33. Qh2 {[%emt 0:02:00]} g4 {[%emt 0:01:32]} 34. Qh4 {[%emt 0:00:32]} Kf7 {[%emt 0:00:31]} 35. a4 {[%emt 0:00:28]} Rg5 {[%emt 0:00:51]} 36. Rb1 {[%emt 0:00:35]} Qe5 {[%emt 0:00:30]} 37. Ne4 {[%emt 0:00:50]} Qd4+ {[%emt 0:02:00]} 38. Nf2 {[%emt 0:00:47]} a5 {[%emt 0:00:47]} 39. Qh2 {[%emt 0:00:39]} Qe5 {[%emt 0:01:44]} 40. Re1 {[%emt 0:00:12]} Rxh5 {[%emt 0:00:08]} 0-1